fUST/lending_fUST_20250615
["ID","MTS","AMOUNT","RATE_DAILY","PERIOD"]
[365804756,1749925842115,-460.0,0.00022191,4]
[365804758,1749925842126,-270.0,0.00022191,4]
[365804760,1749925842140,-460.0,0.00022191,4]
[365804761,1749925842149,-862.44,0.00022191,4]
[365804762,1749925842158,-460.0,0.00022191,4]
[365804763,1749925842168,-956.9,0.00022191,4]
[365804764,1749925842178,-460.0,0.00022191,4]
[365804765,1749925842188,-460.0,0.00022191,4]
[365804766,1749925842198,-460.0,0.00022191,4]
[365804767,1749925842208,-460.0,0.00022191,4]
[365804768,1749925842218,-1253.82,0.00022191,4]
[365804769,1749925842227,-460.0,0.00022191,4]
[365804770,1749925842237,-460.0,0.00022191,4]
[365804771,1749925842246,-1032.07,0.00022191,4]
[365804773,1749925842255,-624.19,0.00022191,4]
[365804774,1749925842264,-1735.45,0.00022191,4]
[365804775,1749925842274,-440.0,0.00022191,4]
[365804776,1749925842285,-460.0,0.00022191,4]
[365804777,1749925842295,-1027.95,0.00022191,4]
[365804778,1749925842304,-460.0,0.00022191,4]
[365804779,1749925842314,-460.0,0.00022191,4]
[365804780,1749925842323,-476.09,0.00022191,4]
[365804781,1749925842333,-898.8,0.00022191,4]
[365804782,1749925842342,-460.0,0.00022191,4]
[365804783,1749925842352,-460.0,0.00022191,4]
[365804784,1749925842361,-460.0,0.00022191,4]
[365804785,1749925842372,-513.72,0.00022191,4]
[365804786,1749925842382,-2698.88,0.00022191,4]
[365804787,1749925842391,-460.0,0.00022191,4]
[365804788,1749925842400,-592.26007752,0.00022191,4]
[365804789,1749925842410,-460.0,0.00022191,4]
[365804790,1749925842419,-460.0,0.00022191,4]
[365804791,1749925842428,-1213.9,0.00022191,4]
[365804792,1749925842438,-598.78,0.00022191,4]
[365804793,1749925842447,-460.0,0.00022191,4]
[365804794,1749925842457,-2304.08,0.00022191,4]
[365804795,1749925842467,-624.98,0.00022191,2]
[365804796,1749925842477,-460.0,0.00022191,4]
[365804797,1749925842487,-1322.52,0.00022191,4]
[365804798,1749925842496,-203.14117043,0.00022191,4]
[365804799,1749925842505,-460.0,0.00022191,4]
[365804800,1749925842514,-460.0,0.00022191,4]
[365804801,1749925842524,-2578.55,0.00022191,4]
[365804802,1749925842533,-460.0,0.00022191,4]
[365804803,1749925842543,-2517.47,0.00022191,4]
[365804804,1749925842552,-460.0,0.00022191,4]
[365804805,1749925842562,-460.0,0.00022191,4]
[365804806,1749925842572,-817.33,0.00022191,4]
[365804807,1749925842581,-1508.36,0.00022191,4]
[365804808,1749925842591,-460.0,0.00022191,4]
[365804809,1749925842601,-460.0,0.00022191,4]
[365804810,1749925842610,-501.12,0.00022191,4]
[365804811,1749925842621,-1075.14,0.00022191,4]
[365804812,1749925842631,-476.62,0.00022191,4]
[365804813,1749925842641,-460.0,0.00022191,4]
[365804814,1749925842650,-460.0,0.00022191,4]
[365804815,1749925842659,-460.0,0.00022191,4]
[365804816,1749925842669,-1464.55,0.00022191,4]
[365804817,1749925842679,-1382.48,0.00022191,4]
[365804818,1749925842688,-460.0,0.00022191,4]
[365804819,1749925842698,-574.9,0.00022191,4]
[365804820,1749925842708,-460.0,0.00022191,4]
[365804821,1749925842718,-1711.35,0.00022191,4]
[365804822,1749925842728,-467.1895561,0.00022191,4]
[365804823,1749925842738,-343.1227896,0.00022191,4]
[365804824,1749925842748,-2058.3,0.00022191,4]
[365804825,1749925842758,-460.0,0.00022191,4]
[365804826,1749925842767,-460.0,0.00022191,4]
[365804827,1749925842777,-460.0,0.00022191,4]
[365804828,1749925842787,-460.0,0.00022191,4]
[365804829,1749925842797,-2786.23,0.00022191,4]
[365804830,1749925842810,-460.0,0.00022191,4]
[365804831,1749925842820,-460.0,0.00022191,4]
[365804832,1749925842830,-2477.9,0.000222,7]
[365804833,1749925842839,-160.0,0.00022207,2]
[365804834,1749925842849,-160.0,0.00022207,2]
[365804835,1749925842859,-1181.0,0.00022218,4]
[365804836,1749925842869,-160.0,0.00022224,2]
[365804837,1749925842880,-160.0,0.00022224,2]
[365804838,1749925842889,-229.82479369,0.00022224,2]
[365804839,1749925842899,-835.41710878,0.00022224,2]
[365804840,1749925842909,-12533.30537164,0.00022224,2]
[365804841,1749925842918,-845.10789306,0.00022224,2]
[365804842,1749925842928,-213.28201367,0.00022224,2]
[365804843,1749925842938,-420.0,0.00022227,2]
[365804844,1749925842948,-1181.0,0.00022246,4]
[365804845,1749925842958,-600.0,0.0002225,2]
[365804846,1749925842967,-168.0,0.00022269,2]
[365804847,1749925842977,-1181.0,0.00022273,4]
[365804848,1749925842987,-964.9368892,0.00022279,6]
[365804849,1749925842997,-160.0,0.0002228,2]
[365804850,1749925843006,-160.0,0.0002228,2]
[365804851,1749925843016,-160.0,0.0002228,2]
[365804852,1749925843025,-1181.0,0.00022301,4]
[365804854,1749925843036,-5000.0,0.0002232,2]
[365804856,1749925843046,-500.0,0.0002232,2]
[365804857,1749925843055,-1000.0,0.0002232,2]
[365804858,1749925843066,-500.0,0.0002232,2]
[365804859,1749925843075,-500.0,0.0002232,2]
[365804860,1749925843085,-2938.92270128,0.0002232,2]
[365804861,1749925843095,-500.0,0.0002232,2]
[365804862,1749925843105,-500.0,0.0002232,2]
[365804863,1749925843114,-500.0,0.0002232,2]
[365804864,1749925843126,-207.4,0.0002232,2]
[365804865,1749925843138,-500.0,0.0002232,2]
[365804867,1749925843148,-500.0,0.0002232,2]
[365804869,1749925843158,-500.0,0.0002232,2]
[365804871,1749925843167,-500.0,0.0002232,2]
[365804873,1749925843177,-500.0,0.0002232,2]
[365804876,1749925843186,-500.0,0.0002232,2]
[365804878,1749925843196,-500.0,0.0002232,2]
[365804880,1749925843205,-500.0,0.0002232,2]
[365804882,1749925843215,-500.0,0.0002232,2]
[365804884,1749925843224,-500.0,0.0002232,2]
[365804886,1749925843234,-1181.0,0.00022328,4]
[365804888,1749925843243,-1181.0,0.00022355,4]
[365804890,1749925843253,-1181.0,0.00022383,4]
[365804892,1749925843262,-716.19,0.000224,7]
[365804894,1749925843271,-1181.0,0.0002241,4]
[365804896,1749925843281,-964.9368892,0.00022417,7]
[365804898,1749925843290,-1181.0,0.00022438,4]
[365804900,1749925843300,-1181.0,0.00022465,4]
[365804902,1749925843309,-151.0,0.00022465,7]
[365804904,1749925843318,-151.0,0.00022465,7]
[365804906,1749925843327,-167.735072,0.00022465,7]
[365804908,1749925843336,-167.735072,0.00022465,7]
[365804910,1749925843346,-460.0,0.00022465,4]
[365804912,1749925843355,-460.0,0.00022465,4]
[365804915,1749925843364,-460.0,0.00022465,4]
[365804918,1749925843375,-460.0,0.00022465,4]
[365804921,1749925843384,-460.0,0.00022465,4]
[365804923,1749925843393,-460.0,0.00022465,4]
[365804926,1749925843402,-1241.53,0.00022465,4]
[365804927,1749925843411,-460.0,0.00022465,4]
[365804928,1749925843420,-460.0,0.00022465,4]
[365804929,1749925843429,-460.0,0.00022465,4]
[365804930,1749925843438,-460.0,0.00022465,4]
[365804931,1749925843448,-460.0,0.00022465,4]
[365804932,1749925843457,-460.0,0.00022465,4]
[365804933,1749925843467,-460.0,0.00022465,4]
[365804934,1749925843476,-460.0,0.00022465,4]
[365804935,1749925843485,-862.44,0.00022465,4]
[365804936,1749925843494,-460.0,0.00022465,4]
[365804937,1749925843503,-956.9,0.00022465,4]
[365804938,1749925843513,-460.0,0.00022465,4]
[365804940,1749925843523,-460.0,0.00022465,4]
[365804941,1749925843532,-460.0,0.00022465,4]
[365804942,1749925843541,-350.0,0.00022465,4]
[365804943,1749925843550,-1253.82,0.00022465,4]
[365804944,1749925843559,-460.0,0.00022465,4]
[365804945,1749925843569,-1032.07,0.00022465,4]
[365804946,1749925843579,-460.0,0.00022465,4]
[365804947,1749925843588,-624.19,0.00022465,4]
[365804948,1749925843598,-1735.45,0.00022465,4]
[365804949,1749925843608,-420.0,0.00022465,4]
[365804950,1749925843618,-1027.95,0.00022465,4]
[365804951,1749925843629,-151.0,0.00022465,7]
[365804952,1749925843638,-460.0,0.00022465,4]
[365804953,1749925843647,-151.0,0.00022465,7]
[365804954,1749925843657,-476.09,0.00022465,4]
[365804955,1749925843666,-898.8,0.00022465,4]
[365804956,1749925843675,-460.0,0.00022465,4]
[365804957,1749925843684,-151.0,0.00022465,7]
[365804958,1749925843693,-460.0,0.00022465,4]
[365804960,1749925843702,-513.72,0.00022465,4]
[365804962,1749925843711,-2698.88,0.00022465,4]
[365804963,1749925843721,-460.0,0.00022465,4]
[365804964,1749925843730,-460.0,0.00022465,4]
[365804966,1749925843740,-1213.9,0.00022465,4]
[365804967,1749925843750,-598.78,0.00022465,4]
[365804968,1749925843760,-2304.08,0.00022465,4]
[365804969,1749925843770,-624.98,0.00022465,2]
[365804970,1749925843781,-460.0,0.00022465,4]
[365804971,1749925843791,-1322.52,0.00022465,4]
[365804972,1749925843801,-460.0,0.00022465,4]
[365804973,1749925843811,-460.0,0.00022465,4]
[365804974,1749925843821,-2578.55,0.00022465,4]
[365804975,1749925843831,-151.0,0.00022465,7]
[365804976,1749925843841,-151.0,0.00022465,7]
[365804977,1749925843852,-2517.47,0.00022465,4]
[365804978,1749925843864,-151.0,0.00022465,7]
[365804979,1749925843874,-400.0,0.00022465,4]
[365804980,1749925843883,-817.33,0.00022465,4]
[365804981,1749925843893,-1508.36,0.00022465,4]
[365804982,1749925843902,-460.0,0.00022465,4]
[365804983,1749925843911,-460.0,0.00022465,4]
[365804984,1749925843921,-501.12,0.00022465,4]
[365804985,1749925843930,-1075.14,0.00022465,4]
[365804986,1749925843939,-476.62,0.00022465,4]
[365804987,1749925843948,-460.0,0.00022465,4]
[365804988,1749925843958,-460.0,0.00022465,4]
[365804989,1749925843968,-1464.55,0.00022465,4]
[365804990,1749925843977,-1382.48,0.00022465,4]
[365804991,1749925843986,-460.0,0.00022465,4]
[365804992,1749925843996,-574.9,0.00022465,4]
[365804993,1749925844005,-460.0,0.00022465,4]
[365804994,1749925844014,-1711.35,0.00022465,4]
[365804995,1749925844023,-2058.3,0.00022465,4]
[365804996,1749925844033,-460.0,0.00022465,4]
[365804997,1749925844042,-460.0,0.00022465,4]
[365804998,1749925844051,-460.0,0.00022465,4]
[365804999,1749925844060,-2786.23,0.00022465,4]
[365805000,1749925844069,-430.0,0.00022465,4]
[365805001,1749925844079,-460.0,0.00022465,4]
[365805002,1749925844088,-448.07493434,0.00022466,2]
[365805003,1749925844098,-151.909552,0.00022488,7]
[365805004,1749925844107,-151.0,0.00022488,7]
[365805005,1749925844116,-1181.0,0.00022492,4]
[365805006,1749925844127,-1181.0,0.0002252,4]
[365805007,1749925844140,-1000.0,0.00022521,2]
[365805008,1749925844150,-1185.60461338,0.00022547,4]
[365805009,1749925844160,-964.9368892,0.00022555,7]
[365805010,1749925844169,-151.0,0.0002266,7]
[365805011,1749925844178,-167.735072,0.0002267,7]
[365805012,1749925844187,-167.735072,0.0002267,7]
[365805013,1749925844197,-153.0,0.00022677,2]
[365805014,1749925844207,-153.0,0.00022677,2]
[365805015,1749925844218,-153.0,0.00022677,2]
[365805016,1749925844227,-153.0,0.00022677,2]
[365805017,1749925844236,-153.0,0.00022677,2]
[365805018,1749925844246,-153.0,0.00022677,2]
[365805019,1749925844255,-153.0,0.00022677,2]
[365805020,1749925844265,-153.0,0.00022677,2]
[365805021,1749925844274,-153.0,0.00022677,2]
[365805022,1749925844283,-153.0,0.00022677,2]
[365805023,1749925844292,-153.0,0.00022677,2]
[365805024,1749925844301,-153.0,0.00022677,2]
[365805025,1749925844310,-153.0,0.00022677,2]
[365805026,1749925844319,-153.0,0.00022677,2]
[365805027,1749925844329,-153.0,0.00022677,2]
[365805028,1749925844338,-153.0,0.00022677,2]
[365805029,1749925844347,-153.0,0.00022677,2]
[365805030,1749925844356,-153.0,0.00022677,2]
[365805031,1749925844365,-153.0,0.00022677,2]
[365805032,1749925844376,-153.0,0.00022677,2]
[365805033,1749925844385,-153.0,0.00022677,2]
[365805034,1749925844394,-153.0,0.00022677,2]
[365805035,1749925844404,-153.0,0.00022677,2]
[365805036,1749925844413,-153.0,0.00022677,2]
[365805037,1749925844423,-153.0,0.00022677,2]
[365805038,1749925844432,-153.0,0.00022677,2]
[365805039,1749925844441,-153.0,0.00022677,2]
[365805040,1749925844450,-153.0,0.00022677,2]
[365805041,1749925844459,-153.0,0.00022677,2]
[365805042,1749925844468,-153.0,0.00022677,2]
[365805043,1749925844477,-153.0,0.00022677,2]
[365805044,1749925844486,-153.0,0.00022677,2]
[365805045,1749925844495,-153.0,0.00022677,2]
[365805046,1749925844504,-153.0,0.00022677,2]
[365805047,1749925844513,-153.0,0.00022677,2]
[365805048,1749925844522,-153.0,0.00022677,2]
[365805049,1749925844532,-153.0,0.00022677,2]
[365805050,1749925844541,-153.0,0.00022677,2]
[365805051,1749925844551,-153.0,0.00022677,2]
[365805052,1749925844560,-153.0,0.00022677,2]
[365805053,1749925844570,-153.0,0.00022677,2]
[365805054,1749925844579,-153.0,0.00022677,2]
[365805055,1749925844587,-153.0,0.00022677,2]
[365805056,1749925844596,-153.0,0.00022677,2]
[365805057,1749925844606,-153.0,0.00022677,2]
[365805058,1749925844615,-153.0,0.00022677,2]
[365805059,1749925844624,-153.0,0.00022677,2]
[365805060,1749925844633,-153.0,0.00022677,2]
[365805061,1749925844643,-153.0,0.00022677,2]
[365805062,1749925844651,-153.0,0.00022677,2]
[365805063,1749925844661,-153.0,0.00022677,2]
[365805064,1749925844670,-153.0,0.00022677,2]
[365805065,1749925844681,-153.0,0.00022677,2]
[365805066,1749925844690,-153.0,0.00022677,2]
[365805067,1749925844700,-153.0,0.00022677,2]
[365805068,1749925844709,-153.0,0.00022677,2]
[365805069,1749925844718,-153.0,0.00022677,2]
[365805070,1749925844727,-153.0,0.00022677,2]
[365805071,1749925844737,-153.0,0.00022677,2]
[365805072,1749925844747,-964.9368892,0.00022693,7]
[365805073,1749925844758,-6000.00144797,0.000227,2]
[365805074,1749925844768,-160.0,0.00022715,3]
[365805075,1749925844778,-258.0,0.00022722,2]
[365805076,1749925844787,-258.0,0.00022727,2]
[365805077,1749925844797,-500.0,0.00022738,3]
[365805078,1749925844806,-151.0,0.00022739,7]
[365805079,1749925844815,-460.0,0.00022739,4]
[365805080,1749925844824,-460.0,0.00022739,4]
[365805081,1749925844834,-460.0,0.00022739,4]
[365805082,1749925844843,-310.0,0.00022739,4]
[365805083,1749925844852,-151.0,0.00022739,7]
[365805084,1749925844862,-222.224892,0.00022739,7]
[365805085,1749925844871,-460.0,0.00022739,4]
[365805086,1749925844881,-1241.53,0.00022739,4]
[365805087,1749925844891,-151.0,0.00022739,7]
[365805088,1749925844900,-151.0,0.00022739,7]
[365805089,1749925844909,-460.0,0.00022739,4]
[365805090,1749925844918,-460.0,0.00022739,4]
[365805091,1749925844929,-460.0,0.00022739,4]
[365805092,1749925844937,-151.0,0.00022739,7]
[365805093,1749925844949,-460.0,0.00022739,4]
[365805094,1749925844960,-460.0,0.00022739,4]
[365805095,1749925844969,-460.0,0.00022739,4]
[365805096,1749925844979,-862.44,0.00022739,4]
[365805097,1749925844988,-460.0,0.00022739,4]
[365805098,1749925844997,-956.9,0.00022739,4]
[365805099,1749925845007,-460.0,0.00022739,4]
[365805100,1749925845018,-460.0,0.00022739,4]
[365805101,1749925845029,-460.0,0.00022739,4]
[365805102,1749925845039,-151.0,0.00022739,7]
[365805103,1749925845049,-1253.82,0.00022739,4]
[365805104,1749925845058,-1032.07,0.00022739,4]
[365805105,1749925845067,-460.0,0.00022739,4]
[365805106,1749925845076,-624.19,0.00022739,4]
[365805107,1749925845085,-1735.45,0.00022739,4]
[365805108,1749925845094,-1027.95,0.00022739,4]
[365805109,1749925845104,-460.0,0.00022739,4]
[365805110,1749925845113,-476.09,0.00022739,4]
[365805111,1749925845122,-898.8,0.00022739,4]
[365805112,1749925845133,-460.0,0.00022739,4]
[365805113,1749925845142,-513.72,0.00022739,4]
[365805114,1749925845152,-2698.88,0.00022739,4]
[365805115,1749925845161,-460.0,0.00022739,4]
[365805116,1749925845172,-1213.9,0.00022739,4]
[365805117,1749925845181,-460.0,0.00022739,4]
[365805118,1749925845190,-598.78,0.00022739,4]
[365805119,1749925845200,-151.0,0.00022739,7]
[365805120,1749925845211,-2304.08,0.00022739,4]
[365805121,1749925845220,-624.98,0.00022739,2]
[365805122,1749925845229,-460.0,0.00022739,4]
[365805123,1749925845239,-1322.52,0.00022739,4]
[365805124,1749925845247,-460.0,0.00022739,4]
[365805125,1749925845257,-460.0,0.00022739,4]
[365805126,1749925845266,-2578.55,0.00022739,4]
[365805127,1749925845276,-2517.47,0.00022739,4]
[365805128,1749925845285,-817.33,0.00022739,4]
[365805129,1749925845294,-1508.36,0.00022739,4]
[365805130,1749925845303,-460.0,0.00022739,4]
[365805131,1749925845313,-460.0,0.00022739,4]
[365805132,1749925845322,-501.12,0.00022739,4]
[365805133,1749925845331,-1075.14,0.00022739,4]
[365805134,1749925845340,-476.62,0.00022739,4]
[365805135,1749925845350,-460.0,0.00022739,4]
[365805136,1749925845360,-460.0,0.00022739,4]
[365805137,1749925845369,-1464.55,0.00022739,4]
[365805138,1749925845377,-460.0,0.00022739,4]
[365805139,1749925845387,-1382.48,0.00022739,4]
[365805140,1749925845395,-574.9,0.00022739,4]
[365805141,1749925845405,-460.0,0.00022739,4]
[365805142,1749925845414,-1711.35,0.00022739,4]
[365805143,1749925845423,-2058.3,0.00022739,4]
[365805144,1749925845432,-439.37059374,0.00022739,4]
[365805145,1749925845442,-460.0,0.00022739,4]
[365805146,1749925845451,-2786.23,0.00022739,4]
[365805147,1749925845460,-168.0,0.00022819,2]
[365805148,1749925845575,-964.9368892,0.00022831,8]
[365805149,1749925845599,-5000.0,0.00022868,2]
[365805150,1749925845608,-5000.0,0.00022938,2]
[365805151,1749925845618,-168.0,0.00022949,2]
[365805152,1749925845629,-964.9368892,0.00022969,8]
[365805153,1749925845639,-151.0,0.00022969,7]
[365805154,1749925845649,-12533.30537164,0.00022969,7]
[365805155,1749925845658,-151.0,0.00022969,7]
[365805156,1749925845667,-160.0,0.0002297,7]
[365805157,1749925845677,-845.10789306,0.0002297,7]
[365805158,1749925845686,-500.0,0.00022973,2]
[365805159,1749925845696,-500.0,0.00022973,2]
[365805160,1749925845705,-500.0,0.00022973,2]
[365805161,1749925845714,-600.0,0.00022973,2]
[365805162,1749925845723,-500.0,0.00022973,2]
[365805163,1749925845732,-500.0,0.00022973,2]
[365805164,1749925845741,-500.0,0.00022973,2]
[365805165,1749925845751,-500.0,0.00022973,2]
[365805166,1749925845760,-500.0,0.00022973,2]
[365805167,1749925845769,-500.0,0.00022973,2]
[365805168,1749925845779,-500.0,0.00022973,2]
[365805169,1749925845788,-500.0,0.00022973,2]
[365805170,1749925845799,-500.0,0.00022973,2]
[365805171,1749925845808,-25395.97503115,0.00022998,2]
[365805172,1749925845818,-167.735072,0.00023,7]
[365805173,1749925845827,-167.735072,0.00023,7]
[365805174,1749925845837,-500.0,0.00023,2]
[365805175,1749925845846,-500.0,0.00023,2]
[365805176,1749925845856,-500.0,0.00023,2]
[365805177,1749925845866,-500.0,0.00023,2]
[365805178,1749925845875,-500.0,0.00023,2]
[365805179,1749925845885,-500.0,0.00023,2]
[365805180,1749925845894,-500.0,0.00023,2]
[365805181,1749925845904,-500.0,0.00023,2]
[365805182,1749925845913,-392.87042946,0.00023,2]
[365805183,1749925845923,-500.0,0.00023,2]
[365805184,1749925845932,-151.0,0.00023,7]
[365805185,1749925845941,-5963.37362922,0.00023,2]
[365805186,1749925845951,-826.81317095,0.00023,2]
[365805187,1749925845960,-6020.85196694,0.00023,3]
[365805188,1749925845969,-15651.68263261,0.00023,2]
[365805189,1749925845978,-40681.90762674,0.00023,20]
[365805191,1749925845987,-151.0,0.00023,7]
[365805192,1749925845996,-280.633622,0.00023,7]
[365805193,1749925846006,-500.0,0.0002301,2]
[365805194,1749925846017,-500.0,0.0002301,2]
[365805195,1749925846026,-500.0,0.0002301,2]
[365805196,1749925846036,-500.0,0.0002301,2]
[365805197,1749925846046,-151.0,0.00023013,7]
[365805198,1749925846056,-151.0,0.00023013,7]
[365805199,1749925846066,-151.0,0.00023013,7]
[365805200,1749925846076,-460.0,0.00023013,4]
[365805201,1749925846085,-151.0,0.00023013,7]
[365805202,1749925846095,-460.0,0.00023013,4]
[365805203,1749925846105,-151.0,0.00023013,7]
[365805204,1749925846115,-460.0,0.00023013,4]
[365805205,1749925846125,-1241.53,0.00023013,4]
[365805206,1749925846137,-151.0,0.00023013,7]
[365805207,1749925846147,-460.0,0.00023013,4]
[365805209,1749925846157,-460.0,0.00023013,4]
[365805211,1749925846166,-460.0,0.00023013,4]
[365805213,1749925846176,-151.0,0.00023013,7]
[365805215,1749925846186,-460.0,0.00023013,4]
[365805217,1749925846195,-151.0,0.00023013,7]
[365805218,1749925846205,-460.0,0.00023013,4]
[365805219,1749925846214,-151.0,0.00023013,7]
[365805220,1749925846224,-460.0,0.00023013,4]
[365805221,1749925846233,-862.44,0.00023013,4]
[365805222,1749925846243,-460.0,0.00023013,4]
[365805223,1749925846253,-956.9,0.00023013,4]
[365805225,1749925846262,-460.0,0.00023013,4]
[365805226,1749925846271,-460.0,0.00023013,4]
[365805227,1749925846281,-460.0,0.00023013,4]
[365805228,1749925846290,-151.0,0.00023013,7]
[365805229,1749925846299,-151.0,0.00023013,7]
[365805230,1749925846309,-1253.82,0.00023013,4]
[365805232,1749925846319,-1032.07,0.00023013,4]
[365805234,1749925846332,-460.0,0.00023013,4]
[365805236,1749925846341,-624.19,0.00023013,4]
[365805237,1749925846351,-1735.45,0.00023013,4]
[365805239,1749925846361,-1027.95,0.00023013,4]
[365805240,1749925846371,-460.0,0.00023013,4]
[365805242,1749925846381,-476.09,0.00023013,4]
[365805243,1749925846391,-898.8,0.00023013,4]
[365805244,1749925846401,-151.62,0.00023013,4]
[365805245,1749925846410,-513.72,0.00023013,4]
[365805246,1749925846419,-2698.88,0.00023013,4]
[365805247,1749925846429,-177.425803,0.00023013,7]
[365805248,1749925846438,-220.0,0.00023013,4]
[365805249,1749925846447,-177.425803,0.00023013,7]
[365805250,1749925846456,-190.0,0.00023013,4]
[365805251,1749925846466,-1213.9,0.00023013,4]
[365805252,1749925846475,-598.78,0.00023013,4]
[365805253,1749925846485,-151.0,0.00023013,7]
[365805254,1749925846494,-2304.08,0.00023013,4]
[365805255,1749925846504,-624.98,0.00023013,2]
[365805256,1749925846513,-460.0,0.00023013,4]
[365805257,1749925846522,-1322.52,0.00023013,4]
[365805258,1749925846531,-460.0,0.00023013,4]
[365805259,1749925846541,-460.0,0.00023013,4]
[365805260,1749925846550,-2578.55,0.00023013,4]
[365805261,1749925846559,-2517.47,0.00023013,4]
[365805262,1749925846569,-817.33,0.00023013,4]
[365805263,1749925846578,-1508.36,0.00023013,4]
[365805264,1749925846588,-460.0,0.00023013,4]
[365805265,1749925846597,-460.0,0.00023013,4]
[365805266,1749925846606,-501.12,0.00023013,4]
[365805267,1749925846616,-1075.14,0.00023013,4]
[365805268,1749925846627,-476.62,0.00023013,4]
[365805269,1749925846637,-460.0,0.00023013,4]
[365805270,1749925846647,-460.0,0.00023013,4]
[365805271,1749925846656,-1464.55,0.00023013,4]
[365805272,1749925846665,-460.0,0.00023013,4]
[365805273,1749925846675,-1382.48,0.00023013,4]
[365805274,1749925846684,-574.9,0.00023013,4]
[365805275,1749925846694,-176.28342129,0.00023013,4]
[365805276,1749925846703,-1711.35,0.00023013,4]
[365805277,1749925846713,-2058.3,0.00023013,4]
[365805278,1749925846723,-460.0,0.00023013,4]
[365805279,1749925846733,-2786.23,0.00023013,4]
[365805281,1749925846743,-1500.0,0.00023068,2]
[365805282,1749925846752,-192.8418287,0.00023071,2]
[365805283,1749925846762,-964.9368892,0.00023107,8]
[365805284,1749925846772,-24112.60626682,0.000232,7]
[365805285,1749925846782,-800.0,0.00023203,2]
[365805287,1749925846791,-151.0,0.0002322,7]
[365805289,1749925846801,-964.9368892,0.00023245,8]
[365805291,1749925846810,-800.0,0.0002327,2]
[365805292,1749925846820,-168.0,0.00023277,2]
[365805293,1749925846829,-167.735072,0.00023287,7]
[365805294,1749925846839,-167.735072,0.00023287,7]
[365805295,1749925846848,-151.0,0.00023287,7]
[365805296,1749925846857,-152.584539,0.00023287,7]
[365805297,1749925846867,-151.0,0.00023287,7]
[365805298,1749925846876,-460.0,0.00023287,4]
[365805299,1749925846885,-800.0,0.00023287,2]
[365805300,1749925846895,-360.0,0.00023287,4]
[365805301,1749925846904,-199.04544,0.00023287,7]
[365805302,1749925846914,-199.04544,0.00023287,7]
[365805303,1749925846923,-370.0,0.00023287,4]
[365805304,1749925846933,-1241.53,0.00023287,4]
[365805305,1749925846942,-460.0,0.00023287,4]
[365805306,1749925846952,-454.62057702,0.00023287,4]
[365805307,1749925846961,-320.0,0.00023287,4]
[365805308,1749925846970,-460.0,0.00023287,4]
[365805309,1749925846979,-460.0,0.00023287,4]
[365805310,1749925846989,-460.0,0.00023287,4]
[365805311,1749925846998,-862.44,0.00023287,4]
[365805312,1749925847008,-200.0,0.00023287,4]
[365805313,1749925847018,-956.9,0.00023287,4]